{"text_format":"3","workbook":"xlsx","n_sheets":4,"sheets":["Kezdés","PROJEKT PARAMÉTEREI","PROJEKTADATOK","PROJEKT ÖSSZESÍTÉSE"],"not_rendered":{"charts":2,"defined_names":3,"pivot_tables":1},"read":"whole","date_system":"1900"}

{"sheet":"Kezdés","index":0,"n_rows":8,"n_cols":2,"rows_kept":8}
[null,"A SABLON ISMERTETÉSE"]
[]
[null,"Ezzel a munkafüzettel nyomon követheti a projekt paraméterei, projektadatok és projekt összesítése a jogi Projekttervezés jogi cégeknek."]
[null,"Ha megadja a cég neve a Projekt paraméterei munkalapon, az a többi munkalapon automatikusan frissül."]
[null,"Adja meg az adatokat a Projekt paraméterei munkalapon az oszlopdiagramok frissítéséhez, és adja meg az adatokat a Projekt adatok munkalapon. A Projekt összesítése munkalapon található kimutatás automatikusan frissül."]
[null,"Megjegyzés:  "]
[null,"Mindegyik munkalap A oszlopában további útmutatást olvashat. Ez a szöveg szándékosan van elrejtve. Ha törölni szeretné a szöveget, jelölje ki az A oszlopot, majd nyomja le a Törlés billentyűt. Ha láthatóvá szeretné tenni a szöveget, jelölje ki az A oszlopot, majd módosítsa a betűszínt."]
[null,"Ha többet szeretne megtudni a munkalapokon lévő táblázatokról, nyomja le a SHIFT+F10 billentyűkombinációt egy táblázaton belül, és válassza a TÁBLÁZAT parancsot, majd a HELYETTESÍTŐ SZÖVEG elemet. Ha a Projekt összesítése munkalapon szereplő kimutatásokról szeretne bővebben tájékozódni, nyomja le a SHIFT+F10 billentyűkombinációt egy táblázaton belül, és válassza a KIMUTATÁS BEÁLLÍTÁSAI parancsot, majd a HELYETTESÍTŐ SZÖVEG fület."]

{"sheet":"PROJEKT PARAMÉTEREI","index":1,"n_rows":19,"n_cols":9,"rows_kept":19}
["Ezen a munkalapon a projekt paraméterei adhatja meg. A jobbra lévő cellában adhatja meg a cég nevét. Ebben az oszlopban hasznos utasítások szerepelnek.","Cég neve"]
["A jobbra lévő cellában szerepel a munkalap címe.","Projekttervezés jogi cégeknek"]
["A jobbra lévő cellában a bizalmasságra vonatkozó üzenet található.",{"$f":"B1&\" – Bizalmas\"","v":"Cég neve – Bizalmas"}]
["A jobbra lévő cellában egy tipp szerepel.","Az árnyékolt cellák értékét a sablon kiszámítja Ön helyett. Ezekbe nem kell írnia semmit."]
["A jobbra lévő cellában kezdődő Paraméterek táblázatban adhatja meg az adatokat. A következő utasítás az A12 cellában található.","PROJEKT TÍPUSA","ÁLTALÁNOS PARTNER","CÉGES JOGÁSZ","VÉDŐÜGYVÉD","SZELL. TUL. VÉDELMÉT ELLÁTÓ JOGÁSZ","CSŐDELJÁRÁSI JOGÁSZ","ADMINISZTRÁCIÓS SZEMÉLYZET","ÖSSZEG"]
[null,"Cégalapítás",{"v":0.1,"d":"10%"},{"v":0.4,"d":"40%"},{"v":0,"d":"0%"},{"v":0,"d":"0%"},{"v":0,"d":"0%"},{"v":0.5,"d":"50%"},{"$f":"SUM(Paraméterek[[#This Row],[ÁLTALÁNOS PARTNER]:[ADMINISZTRÁCIÓS SZEMÉLYZET]])","v":{"v":1,"d":"100%"}}]
[null,"Cégvásárlás",{"v":0.1,"d":"10%"},{"v":0.4,"d":"40%"},{"v":0,"d":"0%"},{"v":0.1,"d":"10%"},{"v":0,"d":"0%"},{"v":0.4,"d":"40%"},{"$f":"SUM(Paraméterek[[#This Row],[ÁLTALÁNOS PARTNER]:[ADMINISZTRÁCIÓS SZEMÉLYZET]])","v":{"v":1,"d":"100%"}}]
[null,"Termékfelelősségi védelem",{"v":0.2,"d":"20%"},{"v":0,"d":"0%"},{"v":0.5,"d":"50%"},{"v":0,"d":"0%"},{"v":0,"d":"0%"},{"v":0.3,"d":"30%"},{"$f":"SUM(Paraméterek[[#This Row],[ÁLTALÁNOS PARTNER]:[ADMINISZTRÁCIÓS SZEMÉLYZET]])","v":{"v":1,"d":"100%"}}]
[null,"Szabadalom alkalmazása",{"v":0.1,"d":"10%"},{"v":0,"d":"0%"},{"v":0,"d":"0%"},{"v":0.6,"d":"60%"},{"v":0,"d":"0%"},{"v":0.3,"d":"30%"},{"$f":"SUM(Paraméterek[[#This Row],[ÁLTALÁNOS PARTNER]:[ADMINISZTRÁCIÓS SZEMÉLYZET]])","v":{"v":1,"d":"100%"}}]
[null,"Alkalmazotti per",{"v":0.2,"d":"20%"},{"v":0.1,"d":"10%"},{"v":0.4,"d":"40%"},{"v":0,"d":"0%"},{"v":0,"d":"0%"},{"v":0.3,"d":"30%"},{"$f":"SUM(Paraméterek[[#This Row],[ÁLTALÁNOS PARTNER]:[ADMINISZTRÁCIÓS SZEMÉLYZET]])","v":{"v":1,"d":"100%"}}]
[null,"Csőd",{"v":0.1,"d":"10%"},{"v":0.2,"d":"20%"},{"v":0,"d":"0%"},{"v":0,"d":"0%"},{"v":0.4,"d":"40%"},{"v":0.3,"d":"30%"},{"$f":"SUM(Paraméterek[[#This Row],[ÁLTALÁNOS PARTNER]:[ADMINISZTRÁCIÓS SZEMÉLYZET]])","v":{"v":1,"d":"100%"}}]
["A jobbra lévő, C12–H12 cellákban adhatja meg a vegyes díjak. A következő utasítás az A14 cellában található.","Vegyes díjak",{"v":350,"d":"350 Ft"},{"v":250,"d":"250 Ft"},{"v":300,"d":"300 Ft"},{"v":275,"d":"275 Ft"},{"v":225,"d":"225 Ft"},{"v":125,"d":"125 Ft"}]
[]
["A jobbra lévő cellában a tervezett és a tényleges költség összehasonlító oszlopdiagram, az F14 cellában pedig a tervezett és a tényleges óraszám megjelenítő oszlopdiagram szerepel."]
[null,null,"ÁLTALÁNOS PARTNER","CÉGES","VÉDŐÜGYVÉD","SZELLEMI TUL.","CSŐD","ADMINISZTRÁCIÓS SZEMÉLYZET"]
[null,"TERVEZETT KÖLTSÉG",{"$f":"SUBTOTAL(109,Adatok[ÁLTALÁNOS PARTNER])","v":{"v":78750,"d":"78,750.00 Ft"}},{"$f":"SUBTOTAL(109,Adatok[CÉGES JOGÁSZ])","v":{"v":66250,"d":"66,250.00 Ft"}},{"$f":"SUBTOTAL(109,Adatok[VÉDŐÜGYVÉD])","v":{"v":105000,"d":"105,000.00 Ft"}},{"$f":"SUBTOTAL(109,Adatok[SZELL. TUL. VÉDELMÉT ELLÁTÓ JOGÁSZ])","v":{"v":35750,"d":"35,750.00 Ft"}},{"$f":"SUBTOTAL(109,Adatok[CSŐDELJÁRÁSI JOGÁSZ])","v":{"v":0,"d":"0.00 Ft"}},{"$f":"SUBTOTAL(109,Adatok[ADMINISZTRÁCIÓS SZEMÉLYZET])","v":{"v":66250,"d":"66,250.00 Ft"}}]
[null,"TÉNYLEGES KÖLTSÉG",{"$f":"SUBTOTAL(109,Adatok[2. ÁLTALÁNOS PARTNER])","v":{"v":79275,"d":"79,275.00 Ft"}},{"$f":"SUBTOTAL(109,Adatok[2. CÉGES JOGÁSZ])","v":{"v":67375,"d":"67,375.00 Ft"}},{"$f":"SUBTOTAL(109,Adatok[2. VÉDŐÜGYVÉD])","v":{"v":105600,"d":"105,600.00 Ft"}},{"$f":"SUBTOTAL(109,Adatok[2. SZELL. TUL. VÉDELMÉT ELLÁTÓ JOGÁSZ])","v":{"v":34650,"d":"34,650.00 Ft"}},{"$f":"SUBTOTAL(109,Adatok[2. CSŐDELJÁRÁSI JOGÁSZ])","v":{"v":0,"d":"0.00 Ft"}},{"$f":"SUBTOTAL(109,Adatok[2. ADMINISZTRÁCIÓS SZEMÉLYZET])","v":{"v":67000,"d":"67,000.00 Ft"}}]
[null,"TERVEZETT ÓRASZÁM",{"$f":"C16/$C$12","v":{"v":225,"d":"225.00"}},{"$f":"D16/$C$12","v":{"v":189.28571428571428,"d":"189.29"}},{"v":300,"d":"300.00"},{"v":102.14285714285714,"d":"102.14"},{"v":0,"d":"0.00"},{"v":189.28571428571428,"d":"189.29"}]
[null,"TÉNYLEGES ÓRASZÁM",{"$f":"C17/$C$12","v":{"v":226.5,"d":"226.50"}},{"$f":"D17/$C$12","v":{"v":192.5,"d":"192.50"}},{"$f":"E17/$C$12","v":{"v":301.7142857142857,"d":"301.71"}},{"$f":"F17/$C$12","v":{"v":99,"d":"99.00"}},{"$f":"G17/$C$12","v":{"v":0,"d":"0.00"}},{"$f":"H17/$C$12","v":{"v":191.42857142857142,"d":"191.43"}}]

{"sheet":"PROJEKTADATOK","index":2,"n_rows":10,"n_cols":25,"rows_kept":10,"merged":[[1,24,8,28]]}
["Ezen a munkalapon adhatja meg a projekt adatok. A jobbra lévő cellában automatikusan frissül a cég neve. Ebben az oszlopban hasznos utasítások szerepelnek. Első lépésként nyomja le a Le nyílbillentyűt.",{"$f":"'PROJEKT PARAMÉTEREI'!B1","v":"Cég neve"}]
["A jobbra lévő cellában a munkalap címe, az Y2 cellában pedig egy tájékoztató tipp szerepel.",{"$f":"'PROJEKT PARAMÉTEREI'!B2","v":"Projekttervezés jogi cégeknek"},{"$nulls":22},"INFORMÁCIÓ:\nHa fel szeretne venni egy sort, jelölje ki a jobb alsó cellát a táblázat törzsében (nem a végösszegek sorában), és nyomja le a Tab billentyűt, vagy nyomja le a SHIFT+F10 billentyűkombinációt a táblázaton belül ott, ahová be szeretné szúrni a sort, és válassza a Beszúrás | Táblázatsorok felülre/alulra lehetőséget.\nÜgyeljen arra, hogy minden nem használt sort töröljön, mert a PROJEKT ÖSSZESÍTÉSE kimutatás a táblázatcellák mindegyikét használni fogja, és ha nem törli a nem használt sorokat, az hibás eredményekhez vezet."]
["A jobbra lévő cellában a bizalmasságra vonatkozó üzenet található.",{"$f":"'PROJEKT PARAMÉTEREI'!B3","v":"Cég neve – Bizalmas"}]
["A jobbra lévő cellában kezdődő Adatok táblázatban adhatja meg az adatok. A jobbra lévő, adatokat tartalmazó táblázatban szereplő projekttípusok automatikusan frissülnek a Projekt paraméterei munkalap paramétereket tartalmazó táblázatának adatai alapján.","PROJEKT NEVE","PROJEKT TÍPUSA","BECSÜLT KEZDÉS","BECSÜLT BEFEJEZÉS","TÉNYLEGES KEZDÉS","TÉNYLEGES BEFEJEZÉS","BECSÜLT MUNKA","TÉNYLEGES MUNKA","BECSÜLT IDŐTARTAM","TÉNYLEGES IDŐTARTAM","ÁLTALÁNOS PARTNER","CÉGES JOGÁSZ","VÉDŐÜGYVÉD","SZELL. TUL. VÉDELMÉT ELLÁTÓ JOGÁSZ","CSŐDELJÁRÁSI JOGÁSZ","ADMINISZTRÁCIÓS SZEMÉLYZET","2. ÁLTALÁNOS PARTNER","2. CÉGES JOGÁSZ","2. VÉDŐÜGYVÉD","2. SZELL. TUL. VÉDELMÉT ELLÁTÓ JOGÁSZ","2. CSŐDELJÁRÁSI JOGÁSZ","2. ADMINISZTRÁCIÓS SZEMÉLYZET"]
[null,"1. projekt","Cégalapítás",{"$f":"TODAY()","v":"2019-02-19"},{"$f":"TODAY()+60","v":"2019-04-20"},{"$f":"TODAY()+10","v":"2019-03-01"},{"$f":"TODAY()+65","v":"2019-04-25"},200,220,{"$f":"DAYS360(Adatok[[#This Row],[BECSÜLT KEZDÉS]],Adatok[[#This Row],[BECSÜLT BEFEJEZÉS]],FALSE)","v":61},{"$f":"DAYS360(Adatok[[#This Row],[TÉNYLEGES KEZDÉS]],Adatok[[#This Row],[TÉNYLEGES BEFEJEZÉS]],FALSE)","v":54},{"$f":"INDEX(Paraméterek[],MATCH(Adatok[[#This Row],[PROJEKT TÍPUSA]],Paraméterek[PROJEKT TÍPUSA],0),MATCH(Adatok[[#Headers],[ÁLTALÁNOS PARTNER]],Paraméterek[#Headers],0))*INDEX('PROJEKT PARAMÉTEREI'!$B$12:$H$12,1,MATCH(Adatok[[#Headers],[ÁLTALÁNOS PARTNER]],Paraméterek[#Headers],0))*Adatok[[#This Row],[BECSÜLT MUNKA]]","v":{"v":7000,"d":"7,000 Ft"}},{"$f":"INDEX(Paraméterek[],MATCH(Adatok[[#This Row],[PROJEKT TÍPUSA]],Paraméterek[PROJEKT TÍPUSA],0),MATCH(Adatok[[#Headers],[CÉGES JOGÁSZ]],Paraméterek[#Headers],0))*INDEX('PROJEKT PARAMÉTEREI'!$B$12:$H$12,1,MATCH(Adatok[[#Headers],[CÉGES JOGÁSZ]],Paraméterek[#Headers],0))*Adatok[[#This Row],[BECSÜLT MUNKA]]","v":{"v":20000,"d":"20,000 Ft"}},{"$f":"INDEX(Paraméterek[],MATCH(Adatok[[#This Row],[PROJEKT TÍPUSA]],Paraméterek[PROJEKT TÍPUSA],0),MATCH(Adatok[[#Headers],[VÉDŐÜGYVÉD]],Paraméterek[#Headers],0))*INDEX('PROJEKT PARAMÉTEREI'!$B$12:$H$12,1,MATCH(Adatok[[#Headers],[VÉDŐÜGYVÉD]],Paraméterek[#Headers],0))*Adatok[[#This Row],[BECSÜLT MUNKA]]","v":{"v":0,"d":"0 Ft"}},{"$f":"INDEX(Paraméterek[],MATCH(Adatok[[#This Row],[PROJEKT TÍPUSA]],Paraméterek[PROJEKT TÍPUSA],0),MATCH(Adatok[[#Headers],[SZELL. TUL. VÉDELMÉT ELLÁTÓ JOGÁSZ]],Paraméterek[#Headers],0))*INDEX('PROJEKT PARAMÉTEREI'!$B$12:$H$12,1,MATCH(Adatok[[#Headers],[SZELL. TUL. VÉDELMÉT ELLÁTÓ JOGÁSZ]],Paraméterek[#Headers],0))*Adatok[[#This Row],[BECSÜLT MUNKA]]","v":{"v":0,"d":"0 Ft"}},{"$f":"INDEX(Paraméterek[],MATCH(Adatok[[#This Row],[PROJEKT TÍPUSA]],Paraméterek[PROJEKT TÍPUSA],0),MATCH(Adatok[[#Headers],[CSŐDELJÁRÁSI JOGÁSZ]],Paraméterek[#Headers],0))*INDEX('PROJEKT PARAMÉTEREI'!$B$12:$H$12,1,MATCH(Adatok[[#Headers],[CSŐDELJÁRÁSI JOGÁSZ]],Paraméterek[#Headers],0))*Adatok[[#This Row],[BECSÜLT MUNKA]]","v":{"v":0,"d":"0 Ft"}},{"$f":"INDEX(Paraméterek[],MATCH(Adatok[[#This Row],[PROJEKT TÍPUSA]],Paraméterek[PROJEKT TÍPUSA],0),MATCH(Adatok[[#Headers],[ADMINISZTRÁCIÓS SZEMÉLYZET]],Paraméterek[#Headers],0))*INDEX('PROJEKT PARAMÉTEREI'!$B$12:$H$12,1,MATCH(Adatok[[#Headers],[ADMINISZTRÁCIÓS SZEMÉLYZET]],Paraméterek[#Headers],0))*Adatok[[#This Row],[BECSÜLT MUNKA]]","v":{"v":12500,"d":"12,500 Ft"}},{"$f":"INDEX(Paraméterek[],MATCH(Adatok[[#This Row],[PROJEKT TÍPUSA]],Paraméterek[PROJEKT TÍPUSA],0),MATCH(Adatok[[#Headers],[ÁLTALÁNOS PARTNER]],Paraméterek[#Headers],0))*INDEX('PROJEKT PARAMÉTEREI'!$B$12:$H$12,1,MATCH(Adatok[[#Headers],[ÁLTALÁNOS PARTNER]],Paraméterek[#Headers],0))*Adatok[[#This Row],[TÉNYLEGES MUNKA]]","v":{"v":7700,"d":"7,700 Ft"}},{"$f":"INDEX(Paraméterek[],MATCH(Adatok[[#This Row],[PROJEKT TÍPUSA]],Paraméterek[PROJEKT TÍPUSA],0),MATCH(Adatok[[#Headers],[CÉGES JOGÁSZ]],Paraméterek[#Headers],0))*INDEX('PROJEKT PARAMÉTEREI'!$B$12:$H$12,1,MATCH(Adatok[[#Headers],[CÉGES JOGÁSZ]],Paraméterek[#Headers],0))*Adatok[[#This Row],[TÉNYLEGES MUNKA]]","v":{"v":22000,"d":"22,000 Ft"}},{"$f":"INDEX(Paraméterek[],MATCH(Adatok[[#This Row],[PROJEKT TÍPUSA]],Paraméterek[PROJEKT TÍPUSA],0),MATCH(Adatok[[#Headers],[VÉDŐÜGYVÉD]],Paraméterek[#Headers],0))*INDEX('PROJEKT PARAMÉTEREI'!$B$12:$H$12,1,MATCH(Adatok[[#Headers],[VÉDŐÜGYVÉD]],Paraméterek[#Headers],0))*Adatok[[#This Row],[TÉNYLEGES MUNKA]]","v":{"v":0,"d":"0 Ft"}},{"$f":"INDEX(Paraméterek[],MATCH(Adatok[[#This Row],[PROJEKT TÍPUSA]],Paraméterek[PROJEKT TÍPUSA],0),MATCH(Adatok[[#Headers],[SZELL. TUL. VÉDELMÉT ELLÁTÓ JOGÁSZ]],Paraméterek[#Headers],0))*INDEX('PROJEKT PARAMÉTEREI'!$B$12:$H$12,1,MATCH(Adatok[[#Headers],[SZELL. TUL. VÉDELMÉT ELLÁTÓ JOGÁSZ]],Paraméterek[#Headers],0))*Adatok[[#This Row],[TÉNYLEGES MUNKA]]","v":{"v":0,"d":"0 Ft"}},{"$f":"INDEX(Paraméterek[],MATCH(Adatok[[#This Row],[PROJEKT TÍPUSA]],Paraméterek[PROJEKT TÍPUSA],0),MATCH(Adatok[[#Headers],[CSŐDELJÁRÁSI JOGÁSZ]],Paraméterek[#Headers],0))*INDEX('PROJEKT PARAMÉTEREI'!$B$12:$H$12,1,MATCH(Adatok[[#Headers],[CSŐDELJÁRÁSI JOGÁSZ]],Paraméterek[#Headers],0))*Adatok[[#This Row],[TÉNYLEGES MUNKA]]","v":{"v":0,"d":"0 Ft"}},{"$f":"INDEX(Paraméterek[],MATCH(Adatok[[#This Row],[PROJEKT TÍPUSA]],Paraméterek[PROJEKT TÍPUSA],0),MATCH(Adatok[[#Headers],[ADMINISZTRÁCIÓS SZEMÉLYZET]],Paraméterek[#Headers],0))*INDEX('PROJEKT PARAMÉTEREI'!$B$12:$H$12,1,MATCH(Adatok[[#Headers],[ADMINISZTRÁCIÓS SZEMÉLYZET]],Paraméterek[#Headers],0))*Adatok[[#This Row],[TÉNYLEGES MUNKA]]","v":{"v":13750,"d":"13,750 Ft"}}]
[null,"2. projekt","Cégvásárlás",{"$f":"TODAY()+30","v":"2019-03-21"},{"$f":"TODAY()+100","v":"2019-05-30"},{"$f":"TODAY()+40","v":"2019-03-31"},{"$f":"TODAY()+110","v":"2019-06-09"},400,390,{"$f":"DAYS360(Adatok[[#This Row],[BECSÜLT KEZDÉS]],Adatok[[#This Row],[BECSÜLT BEFEJEZÉS]],FALSE)","v":69},{"$f":"DAYS360(Adatok[[#This Row],[TÉNYLEGES KEZDÉS]],Adatok[[#This Row],[TÉNYLEGES BEFEJEZÉS]],FALSE)","v":69},{"$f":"INDEX(Paraméterek[],MATCH(Adatok[[#This Row],[PROJEKT TÍPUSA]],Paraméterek[PROJEKT TÍPUSA],0),MATCH(Adatok[[#Headers],[ÁLTALÁNOS PARTNER]],Paraméterek[#Headers],0))*INDEX('PROJEKT PARAMÉTEREI'!$B$12:$H$12,1,MATCH(Adatok[[#Headers],[ÁLTALÁNOS PARTNER]],Paraméterek[#Headers],0))*Adatok[[#This Row],[BECSÜLT MUNKA]]","v":{"v":14000,"d":"14,000 Ft"}},{"$f":"INDEX(Paraméterek[],MATCH(Adatok[[#This Row],[PROJEKT TÍPUSA]],Paraméterek[PROJEKT TÍPUSA],0),MATCH(Adatok[[#Headers],[CÉGES JOGÁSZ]],Paraméterek[#Headers],0))*INDEX('PROJEKT PARAMÉTEREI'!$B$12:$H$12,1,MATCH(Adatok[[#Headers],[CÉGES JOGÁSZ]],Paraméterek[#Headers],0))*Adatok[[#This Row],[BECSÜLT MUNKA]]","v":{"v":40000,"d":"40,000 Ft"}},{"$f":"INDEX(Paraméterek[],MATCH(Adatok[[#This Row],[PROJEKT TÍPUSA]],Paraméterek[PROJEKT TÍPUSA],0),MATCH(Adatok[[#Headers],[VÉDŐÜGYVÉD]],Paraméterek[#Headers],0))*INDEX('PROJEKT PARAMÉTEREI'!$B$12:$H$12,1,MATCH(Adatok[[#Headers],[VÉDŐÜGYVÉD]],Paraméterek[#Headers],0))*Adatok[[#This Row],[BECSÜLT MUNKA]]","v":{"v":0,"d":"0 Ft"}},{"$f":"INDEX(Paraméterek[],MATCH(Adatok[[#This Row],[PROJEKT TÍPUSA]],Paraméterek[PROJEKT TÍPUSA],0),MATCH(Adatok[[#Headers],[SZELL. TUL. VÉDELMÉT ELLÁTÓ JOGÁSZ]],Paraméterek[#Headers],0))*INDEX('PROJEKT PARAMÉTEREI'!$B$12:$H$12,1,MATCH(Adatok[[#Headers],[SZELL. TUL. VÉDELMÉT ELLÁTÓ JOGÁSZ]],Paraméterek[#Headers],0))*Adatok[[#This Row],[BECSÜLT MUNKA]]","v":{"v":11000,"d":"11,000 Ft"}},{"$f":"INDEX(Paraméterek[],MATCH(Adatok[[#This Row],[PROJEKT TÍPUSA]],Paraméterek[PROJEKT TÍPUSA],0),MATCH(Adatok[[#Headers],[CSŐDELJÁRÁSI JOGÁSZ]],Paraméterek[#Headers],0))*INDEX('PROJEKT PARAMÉTEREI'!$B$12:$H$12,1,MATCH(Adatok[[#Headers],[CSŐDELJÁRÁSI JOGÁSZ]],Paraméterek[#Headers],0))*Adatok[[#This Row],[BECSÜLT MUNKA]]","v":{"v":0,"d":"0 Ft"}},{"$f":"INDEX(Paraméterek[],MATCH(Adatok[[#This Row],[PROJEKT TÍPUSA]],Paraméterek[PROJEKT TÍPUSA],0),MATCH(Adatok[[#Headers],[ADMINISZTRÁCIÓS SZEMÉLYZET]],Paraméterek[#Headers],0))*INDEX('PROJEKT PARAMÉTEREI'!$B$12:$H$12,1,MATCH(Adatok[[#Headers],[ADMINISZTRÁCIÓS SZEMÉLYZET]],Paraméterek[#Headers],0))*Adatok[[#This Row],[BECSÜLT MUNKA]]","v":{"v":20000,"d":"20,000 Ft"}},{"$f":"INDEX(Paraméterek[],MATCH(Adatok[[#This Row],[PROJEKT TÍPUSA]],Paraméterek[PROJEKT TÍPUSA],0),MATCH(Adatok[[#Headers],[ÁLTALÁNOS PARTNER]],Paraméterek[#Headers],0))*INDEX('PROJEKT PARAMÉTEREI'!$B$12:$H$12,1,MATCH(Adatok[[#Headers],[ÁLTALÁNOS PARTNER]],Paraméterek[#Headers],0))*Adatok[[#This Row],[TÉNYLEGES MUNKA]]","v":{"v":13650,"d":"13,650 Ft"}},{"$f":"INDEX(Paraméterek[],MATCH(Adatok[[#This Row],[PROJEKT TÍPUSA]],Paraméterek[PROJEKT TÍPUSA],0),MATCH(Adatok[[#Headers],[CÉGES JOGÁSZ]],Paraméterek[#Headers],0))*INDEX('PROJEKT PARAMÉTEREI'!$B$12:$H$12,1,MATCH(Adatok[[#Headers],[CÉGES JOGÁSZ]],Paraméterek[#Headers],0))*Adatok[[#This Row],[TÉNYLEGES MUNKA]]","v":{"v":39000,"d":"39,000 Ft"}},{"$f":"INDEX(Paraméterek[],MATCH(Adatok[[#This Row],[PROJEKT TÍPUSA]],Paraméterek[PROJEKT TÍPUSA],0),MATCH(Adatok[[#Headers],[VÉDŐÜGYVÉD]],Paraméterek[#Headers],0))*INDEX('PROJEKT PARAMÉTEREI'!$B$12:$H$12,1,MATCH(Adatok[[#Headers],[VÉDŐÜGYVÉD]],Paraméterek[#Headers],0))*Adatok[[#This Row],[TÉNYLEGES MUNKA]]","v":{"v":0,"d":"0 Ft"}},{"$f":"INDEX(Paraméterek[],MATCH(Adatok[[#This Row],[PROJEKT TÍPUSA]],Paraméterek[PROJEKT TÍPUSA],0),MATCH(Adatok[[#Headers],[SZELL. TUL. VÉDELMÉT ELLÁTÓ JOGÁSZ]],Paraméterek[#Headers],0))*INDEX('PROJEKT PARAMÉTEREI'!$B$12:$H$12,1,MATCH(Adatok[[#Headers],[SZELL. TUL. VÉDELMÉT ELLÁTÓ JOGÁSZ]],Paraméterek[#Headers],0))*Adatok[[#This Row],[TÉNYLEGES MUNKA]]","v":{"v":10725,"d":"10,725 Ft"}},{"$f":"INDEX(Paraméterek[],MATCH(Adatok[[#This Row],[PROJEKT TÍPUSA]],Paraméterek[PROJEKT TÍPUSA],0),MATCH(Adatok[[#Headers],[CSŐDELJÁRÁSI JOGÁSZ]],Paraméterek[#Headers],0))*INDEX('PROJEKT PARAMÉTEREI'!$B$12:$H$12,1,MATCH(Adatok[[#Headers],[CSŐDELJÁRÁSI JOGÁSZ]],Paraméterek[#Headers],0))*Adatok[[#This Row],[TÉNYLEGES MUNKA]]","v":{"v":0,"d":"0 Ft"}},{"$f":"INDEX(Paraméterek[],MATCH(Adatok[[#This Row],[PROJEKT TÍPUSA]],Paraméterek[PROJEKT TÍPUSA],0),MATCH(Adatok[[#Headers],[ADMINISZTRÁCIÓS SZEMÉLYZET]],Paraméterek[#Headers],0))*INDEX('PROJEKT PARAMÉTEREI'!$B$12:$H$12,1,MATCH(Adatok[[#Headers],[ADMINISZTRÁCIÓS SZEMÉLYZET]],Paraméterek[#Headers],0))*Adatok[[#This Row],[TÉNYLEGES MUNKA]]","v":{"v":19500,"d":"19,500 Ft"}}]
[null,"3. projekt","Termékfelelősségi védelem",{"$f":"TODAY()+150","v":"2019-07-19"},{"$f":"TODAY()+150","v":"2019-07-19"},{"$f":"TODAY()+150","v":"2019-07-19"},{"$f":"TODAY()+170","v":"2019-08-08"},500,500,{"$f":"DAYS360(Adatok[[#This Row],[BECSÜLT KEZDÉS]],Adatok[[#This Row],[BECSÜLT BEFEJEZÉS]],FALSE)","v":0},{"$f":"DAYS360(Adatok[[#This Row],[TÉNYLEGES KEZDÉS]],Adatok[[#This Row],[TÉNYLEGES BEFEJEZÉS]],FALSE)","v":19},{"$f":"INDEX(Paraméterek[],MATCH(Adatok[[#This Row],[PROJEKT TÍPUSA]],Paraméterek[PROJEKT TÍPUSA],0),MATCH(Adatok[[#Headers],[ÁLTALÁNOS PARTNER]],Paraméterek[#Headers],0))*INDEX('PROJEKT PARAMÉTEREI'!$B$12:$H$12,1,MATCH(Adatok[[#Headers],[ÁLTALÁNOS PARTNER]],Paraméterek[#Headers],0))*Adatok[[#This Row],[BECSÜLT MUNKA]]","v":{"v":35000,"d":"35,000 Ft"}},{"$f":"INDEX(Paraméterek[],MATCH(Adatok[[#This Row],[PROJEKT TÍPUSA]],Paraméterek[PROJEKT TÍPUSA],0),MATCH(Adatok[[#Headers],[CÉGES JOGÁSZ]],Paraméterek[#Headers],0))*INDEX('PROJEKT PARAMÉTEREI'!$B$12:$H$12,1,MATCH(Adatok[[#Headers],[CÉGES JOGÁSZ]],Paraméterek[#Headers],0))*Adatok[[#This Row],[BECSÜLT MUNKA]]","v":{"v":0,"d":"0 Ft"}},{"$f":"INDEX(Paraméterek[],MATCH(Adatok[[#This Row],[PROJEKT TÍPUSA]],Paraméterek[PROJEKT TÍPUSA],0),MATCH(Adatok[[#Headers],[VÉDŐÜGYVÉD]],Paraméterek[#Headers],0))*INDEX('PROJEKT PARAMÉTEREI'!$B$12:$H$12,1,MATCH(Adatok[[#Headers],[VÉDŐÜGYVÉD]],Paraméterek[#Headers],0))*Adatok[[#This Row],[BECSÜLT MUNKA]]","v":{"v":75000,"d":"75,000 Ft"}},{"$f":"INDEX(Paraméterek[],MATCH(Adatok[[#This Row],[PROJEKT TÍPUSA]],Paraméterek[PROJEKT TÍPUSA],0),MATCH(Adatok[[#Headers],[SZELL. TUL. VÉDELMÉT ELLÁTÓ JOGÁSZ]],Paraméterek[#Headers],0))*INDEX('PROJEKT PARAMÉTEREI'!$B$12:$H$12,1,MATCH(Adatok[[#Headers],[SZELL. TUL. VÉDELMÉT ELLÁTÓ JOGÁSZ]],Paraméterek[#Headers],0))*Adatok[[#This Row],[BECSÜLT MUNKA]]","v":{"v":0,"d":"0 Ft"}},{"$f":"INDEX(Paraméterek[],MATCH(Adatok[[#This Row],[PROJEKT TÍPUSA]],Paraméterek[PROJEKT TÍPUSA],0),MATCH(Adatok[[#Headers],[CSŐDELJÁRÁSI JOGÁSZ]],Paraméterek[#Headers],0))*INDEX('PROJEKT PARAMÉTEREI'!$B$12:$H$12,1,MATCH(Adatok[[#Headers],[CSŐDELJÁRÁSI JOGÁSZ]],Paraméterek[#Headers],0))*Adatok[[#This Row],[BECSÜLT MUNKA]]","v":{"v":0,"d":"0 Ft"}},{"$f":"INDEX(Paraméterek[],MATCH(Adatok[[#This Row],[PROJEKT TÍPUSA]],Paraméterek[PROJEKT TÍPUSA],0),MATCH(Adatok[[#Headers],[ADMINISZTRÁCIÓS SZEMÉLYZET]],Paraméterek[#Headers],0))*INDEX('PROJEKT PARAMÉTEREI'!$B$12:$H$12,1,MATCH(Adatok[[#Headers],[ADMINISZTRÁCIÓS SZEMÉLYZET]],Paraméterek[#Headers],0))*Adatok[[#This Row],[BECSÜLT MUNKA]]","v":{"v":18750,"d":"18,750 Ft"}},{"$f":"INDEX(Paraméterek[],MATCH(Adatok[[#This Row],[PROJEKT TÍPUSA]],Paraméterek[PROJEKT TÍPUSA],0),MATCH(Adatok[[#Headers],[ÁLTALÁNOS PARTNER]],Paraméterek[#Headers],0))*INDEX('PROJEKT PARAMÉTEREI'!$B$12:$H$12,1,MATCH(Adatok[[#Headers],[ÁLTALÁNOS PARTNER]],Paraméterek[#Headers],0))*Adatok[[#This Row],[TÉNYLEGES MUNKA]]","v":{"v":35000,"d":"35,000 Ft"}},{"$f":"INDEX(Paraméterek[],MATCH(Adatok[[#This Row],[PROJEKT TÍPUSA]],Paraméterek[PROJEKT TÍPUSA],0),MATCH(Adatok[[#Headers],[CÉGES JOGÁSZ]],Paraméterek[#Headers],0))*INDEX('PROJEKT PARAMÉTEREI'!$B$12:$H$12,1,MATCH(Adatok[[#Headers],[CÉGES JOGÁSZ]],Paraméterek[#Headers],0))*Adatok[[#This Row],[TÉNYLEGES MUNKA]]","v":{"v":0,"d":"0 Ft"}},{"$f":"INDEX(Paraméterek[],MATCH(Adatok[[#This Row],[PROJEKT TÍPUSA]],Paraméterek[PROJEKT TÍPUSA],0),MATCH(Adatok[[#Headers],[VÉDŐÜGYVÉD]],Paraméterek[#Headers],0))*INDEX('PROJEKT PARAMÉTEREI'!$B$12:$H$12,1,MATCH(Adatok[[#Headers],[VÉDŐÜGYVÉD]],Paraméterek[#Headers],0))*Adatok[[#This Row],[TÉNYLEGES MUNKA]]","v":{"v":75000,"d":"75,000 Ft"}},{"$f":"INDEX(Paraméterek[],MATCH(Adatok[[#This Row],[PROJEKT TÍPUSA]],Paraméterek[PROJEKT TÍPUSA],0),MATCH(Adatok[[#Headers],[SZELL. TUL. VÉDELMÉT ELLÁTÓ JOGÁSZ]],Paraméterek[#Headers],0))*INDEX('PROJEKT PARAMÉTEREI'!$B$12:$H$12,1,MATCH(Adatok[[#Headers],[SZELL. TUL. VÉDELMÉT ELLÁTÓ JOGÁSZ]],Paraméterek[#Headers],0))*Adatok[[#This Row],[TÉNYLEGES MUNKA]]","v":{"v":0,"d":"0 Ft"}},{"$f":"INDEX(Paraméterek[],MATCH(Adatok[[#This Row],[PROJEKT TÍPUSA]],Paraméterek[PROJEKT TÍPUSA],0),MATCH(Adatok[[#Headers],[CSŐDELJÁRÁSI JOGÁSZ]],Paraméterek[#Headers],0))*INDEX('PROJEKT PARAMÉTEREI'!$B$12:$H$12,1,MATCH(Adatok[[#Headers],[CSŐDELJÁRÁSI JOGÁSZ]],Paraméterek[#Headers],0))*Adatok[[#This Row],[TÉNYLEGES MUNKA]]","v":{"v":0,"d":"0 Ft"}},{"$f":"INDEX(Paraméterek[],MATCH(Adatok[[#This Row],[PROJEKT TÍPUSA]],Paraméterek[PROJEKT TÍPUSA],0),MATCH(Adatok[[#Headers],[ADMINISZTRÁCIÓS SZEMÉLYZET]],Paraméterek[#Headers],0))*INDEX('PROJEKT PARAMÉTEREI'!$B$12:$H$12,1,MATCH(Adatok[[#Headers],[ADMINISZTRÁCIÓS SZEMÉLYZET]],Paraméterek[#Headers],0))*Adatok[[#This Row],[TÉNYLEGES MUNKA]]","v":{"v":18750,"d":"18,750 Ft"}}]
[null,"4. projekt","Szabadalom alkalmazása",{"$f":"TODAY()+200","v":"2019-09-07"},{"$f":"TODAY()+230","v":"2019-10-07"},{"$f":"TODAY()+230","v":"2019-10-07"},{"$f":"TODAY()+230","v":"2019-10-07"},150,145,{"$f":"DAYS360(Adatok[[#This Row],[BECSÜLT KEZDÉS]],Adatok[[#This Row],[BECSÜLT BEFEJEZÉS]],FALSE)","v":30},{"$f":"DAYS360(Adatok[[#This Row],[TÉNYLEGES KEZDÉS]],Adatok[[#This Row],[TÉNYLEGES BEFEJEZÉS]],FALSE)","v":0},{"$f":"INDEX(Paraméterek[],MATCH(Adatok[[#This Row],[PROJEKT TÍPUSA]],Paraméterek[PROJEKT TÍPUSA],0),MATCH(Adatok[[#Headers],[ÁLTALÁNOS PARTNER]],Paraméterek[#Headers],0))*INDEX('PROJEKT PARAMÉTEREI'!$B$12:$H$12,1,MATCH(Adatok[[#Headers],[ÁLTALÁNOS PARTNER]],Paraméterek[#Headers],0))*Adatok[[#This Row],[BECSÜLT MUNKA]]","v":{"v":5250,"d":"5,250 Ft"}},{"$f":"INDEX(Paraméterek[],MATCH(Adatok[[#This Row],[PROJEKT TÍPUSA]],Paraméterek[PROJEKT TÍPUSA],0),MATCH(Adatok[[#Headers],[CÉGES JOGÁSZ]],Paraméterek[#Headers],0))*INDEX('PROJEKT PARAMÉTEREI'!$B$12:$H$12,1,MATCH(Adatok[[#Headers],[CÉGES JOGÁSZ]],Paraméterek[#Headers],0))*Adatok[[#This Row],[BECSÜLT MUNKA]]","v":{"v":0,"d":"0 Ft"}},{"$f":"INDEX(Paraméterek[],MATCH(Adatok[[#This Row],[PROJEKT TÍPUSA]],Paraméterek[PROJEKT TÍPUSA],0),MATCH(Adatok[[#Headers],[VÉDŐÜGYVÉD]],Paraméterek[#Headers],0))*INDEX('PROJEKT PARAMÉTEREI'!$B$12:$H$12,1,MATCH(Adatok[[#Headers],[VÉDŐÜGYVÉD]],Paraméterek[#Headers],0))*Adatok[[#This Row],[BECSÜLT MUNKA]]","v":{"v":0,"d":"0 Ft"}},{"$f":"INDEX(Paraméterek[],MATCH(Adatok[[#This Row],[PROJEKT TÍPUSA]],Paraméterek[PROJEKT TÍPUSA],0),MATCH(Adatok[[#Headers],[SZELL. TUL. VÉDELMÉT ELLÁTÓ JOGÁSZ]],Paraméterek[#Headers],0))*INDEX('PROJEKT PARAMÉTEREI'!$B$12:$H$12,1,MATCH(Adatok[[#Headers],[SZELL. TUL. VÉDELMÉT ELLÁTÓ JOGÁSZ]],Paraméterek[#Headers],0))*Adatok[[#This Row],[BECSÜLT MUNKA]]","v":{"v":24750,"d":"24,750 Ft"}},{"$f":"INDEX(Paraméterek[],MATCH(Adatok[[#This Row],[PROJEKT TÍPUSA]],Paraméterek[PROJEKT TÍPUSA],0),MATCH(Adatok[[#Headers],[CSŐDELJÁRÁSI JOGÁSZ]],Paraméterek[#Headers],0))*INDEX('PROJEKT PARAMÉTEREI'!$B$12:$H$12,1,MATCH(Adatok[[#Headers],[CSŐDELJÁRÁSI JOGÁSZ]],Paraméterek[#Headers],0))*Adatok[[#This Row],[BECSÜLT MUNKA]]","v":{"v":0,"d":"0 Ft"}},{"$f":"INDEX(Paraméterek[],MATCH(Adatok[[#This Row],[PROJEKT TÍPUSA]],Paraméterek[PROJEKT TÍPUSA],0),MATCH(Adatok[[#Headers],[ADMINISZTRÁCIÓS SZEMÉLYZET]],Paraméterek[#Headers],0))*INDEX('PROJEKT PARAMÉTEREI'!$B$12:$H$12,1,MATCH(Adatok[[#Headers],[ADMINISZTRÁCIÓS SZEMÉLYZET]],Paraméterek[#Headers],0))*Adatok[[#This Row],[BECSÜLT MUNKA]]","v":{"v":5625,"d":"5,625 Ft"}},{"$f":"INDEX(Paraméterek[],MATCH(Adatok[[#This Row],[PROJEKT TÍPUSA]],Paraméterek[PROJEKT TÍPUSA],0),MATCH(Adatok[[#Headers],[ÁLTALÁNOS PARTNER]],Paraméterek[#Headers],0))*INDEX('PROJEKT PARAMÉTEREI'!$B$12:$H$12,1,MATCH(Adatok[[#Headers],[ÁLTALÁNOS PARTNER]],Paraméterek[#Headers],0))*Adatok[[#This Row],[TÉNYLEGES MUNKA]]","v":{"v":5075,"d":"5,075 Ft"}},{"$f":"INDEX(Paraméterek[],MATCH(Adatok[[#This Row],[PROJEKT TÍPUSA]],Paraméterek[PROJEKT TÍPUSA],0),MATCH(Adatok[[#Headers],[CÉGES JOGÁSZ]],Paraméterek[#Headers],0))*INDEX('PROJEKT PARAMÉTEREI'!$B$12:$H$12,1,MATCH(Adatok[[#Headers],[CÉGES JOGÁSZ]],Paraméterek[#Headers],0))*Adatok[[#This Row],[TÉNYLEGES MUNKA]]","v":{"v":0,"d":"0 Ft"}},{"$f":"INDEX(Paraméterek[],MATCH(Adatok[[#This Row],[PROJEKT TÍPUSA]],Paraméterek[PROJEKT TÍPUSA],0),MATCH(Adatok[[#Headers],[VÉDŐÜGYVÉD]],Paraméterek[#Headers],0))*INDEX('PROJEKT PARAMÉTEREI'!$B$12:$H$12,1,MATCH(Adatok[[#Headers],[VÉDŐÜGYVÉD]],Paraméterek[#Headers],0))*Adatok[[#This Row],[TÉNYLEGES MUNKA]]","v":{"v":0,"d":"0 Ft"}},{"$f":"INDEX(Paraméterek[],MATCH(Adatok[[#This Row],[PROJEKT TÍPUSA]],Paraméterek[PROJEKT TÍPUSA],0),MATCH(Adatok[[#Headers],[SZELL. TUL. VÉDELMÉT ELLÁTÓ JOGÁSZ]],Paraméterek[#Headers],0))*INDEX('PROJEKT PARAMÉTEREI'!$B$12:$H$12,1,MATCH(Adatok[[#Headers],[SZELL. TUL. VÉDELMÉT ELLÁTÓ JOGÁSZ]],Paraméterek[#Headers],0))*Adatok[[#This Row],[TÉNYLEGES MUNKA]]","v":{"v":23925,"d":"23,925 Ft"}},{"$f":"INDEX(Paraméterek[],MATCH(Adatok[[#This Row],[PROJEKT TÍPUSA]],Paraméterek[PROJEKT TÍPUSA],0),MATCH(Adatok[[#Headers],[CSŐDELJÁRÁSI JOGÁSZ]],Paraméterek[#Headers],0))*INDEX('PROJEKT PARAMÉTEREI'!$B$12:$H$12,1,MATCH(Adatok[[#Headers],[CSŐDELJÁRÁSI JOGÁSZ]],Paraméterek[#Headers],0))*Adatok[[#This Row],[TÉNYLEGES MUNKA]]","v":{"v":0,"d":"0 Ft"}},{"$f":"INDEX(Paraméterek[],MATCH(Adatok[[#This Row],[PROJEKT TÍPUSA]],Paraméterek[PROJEKT TÍPUSA],0),MATCH(Adatok[[#Headers],[ADMINISZTRÁCIÓS SZEMÉLYZET]],Paraméterek[#Headers],0))*INDEX('PROJEKT PARAMÉTEREI'!$B$12:$H$12,1,MATCH(Adatok[[#Headers],[ADMINISZTRÁCIÓS SZEMÉLYZET]],Paraméterek[#Headers],0))*Adatok[[#This Row],[TÉNYLEGES MUNKA]]","v":{"v":5437.5,"d":"5,438 Ft"}}]
[null,"5. projekt","Alkalmazotti per",{"$f":"TODAY()+220","v":"2019-09-27"},{"$f":"TODAY()+250","v":"2019-10-27"},{"$f":"TODAY()+230","v":"2019-10-07"},{"$f":"TODAY()+259","v":"2019-11-05"},250,255,{"$f":"DAYS360(Adatok[[#This Row],[BECSÜLT KEZDÉS]],Adatok[[#This Row],[BECSÜLT BEFEJEZÉS]],FALSE)","v":30},{"$f":"DAYS360(Adatok[[#This Row],[TÉNYLEGES KEZDÉS]],Adatok[[#This Row],[TÉNYLEGES BEFEJEZÉS]],FALSE)","v":28},{"$f":"INDEX(Paraméterek[],MATCH(Adatok[[#This Row],[PROJEKT TÍPUSA]],Paraméterek[PROJEKT TÍPUSA],0),MATCH(Adatok[[#Headers],[ÁLTALÁNOS PARTNER]],Paraméterek[#Headers],0))*INDEX('PROJEKT PARAMÉTEREI'!$B$12:$H$12,1,MATCH(Adatok[[#Headers],[ÁLTALÁNOS PARTNER]],Paraméterek[#Headers],0))*Adatok[[#This Row],[BECSÜLT MUNKA]]","v":{"v":17500,"d":"17,500 Ft"}},{"$f":"INDEX(Paraméterek[],MATCH(Adatok[[#This Row],[PROJEKT TÍPUSA]],Paraméterek[PROJEKT TÍPUSA],0),MATCH(Adatok[[#Headers],[CÉGES JOGÁSZ]],Paraméterek[#Headers],0))*INDEX('PROJEKT PARAMÉTEREI'!$B$12:$H$12,1,MATCH(Adatok[[#Headers],[CÉGES JOGÁSZ]],Paraméterek[#Headers],0))*Adatok[[#This Row],[BECSÜLT MUNKA]]","v":{"v":6250,"d":"6,250 Ft"}},{"$f":"INDEX(Paraméterek[],MATCH(Adatok[[#This Row],[PROJEKT TÍPUSA]],Paraméterek[PROJEKT TÍPUSA],0),MATCH(Adatok[[#Headers],[VÉDŐÜGYVÉD]],Paraméterek[#Headers],0))*INDEX('PROJEKT PARAMÉTEREI'!$B$12:$H$12,1,MATCH(Adatok[[#Headers],[VÉDŐÜGYVÉD]],Paraméterek[#Headers],0))*Adatok[[#This Row],[BECSÜLT MUNKA]]","v":{"v":30000,"d":"30,000 Ft"}},{"$f":"INDEX(Paraméterek[],MATCH(Adatok[[#This Row],[PROJEKT TÍPUSA]],Paraméterek[PROJEKT TÍPUSA],0),MATCH(Adatok[[#Headers],[SZELL. TUL. VÉDELMÉT ELLÁTÓ JOGÁSZ]],Paraméterek[#Headers],0))*INDEX('PROJEKT PARAMÉTEREI'!$B$12:$H$12,1,MATCH(Adatok[[#Headers],[SZELL. TUL. VÉDELMÉT ELLÁTÓ JOGÁSZ]],Paraméterek[#Headers],0))*Adatok[[#This Row],[BECSÜLT MUNKA]]","v":{"v":0,"d":"0 Ft"}},{"$f":"INDEX(Paraméterek[],MATCH(Adatok[[#This Row],[PROJEKT TÍPUSA]],Paraméterek[PROJEKT TÍPUSA],0),MATCH(Adatok[[#Headers],[CSŐDELJÁRÁSI JOGÁSZ]],Paraméterek[#Headers],0))*INDEX('PROJEKT PARAMÉTEREI'!$B$12:$H$12,1,MATCH(Adatok[[#Headers],[CSŐDELJÁRÁSI JOGÁSZ]],Paraméterek[#Headers],0))*Adatok[[#This Row],[BECSÜLT MUNKA]]","v":{"v":0,"d":"0 Ft"}},{"$f":"INDEX(Paraméterek[],MATCH(Adatok[[#This Row],[PROJEKT TÍPUSA]],Paraméterek[PROJEKT TÍPUSA],0),MATCH(Adatok[[#Headers],[ADMINISZTRÁCIÓS SZEMÉLYZET]],Paraméterek[#Headers],0))*INDEX('PROJEKT PARAMÉTEREI'!$B$12:$H$12,1,MATCH(Adatok[[#Headers],[ADMINISZTRÁCIÓS SZEMÉLYZET]],Paraméterek[#Headers],0))*Adatok[[#This Row],[BECSÜLT MUNKA]]","v":{"v":9375,"d":"9,375 Ft"}},{"$f":"INDEX(Paraméterek[],MATCH(Adatok[[#This Row],[PROJEKT TÍPUSA]],Paraméterek[PROJEKT TÍPUSA],0),MATCH(Adatok[[#Headers],[ÁLTALÁNOS PARTNER]],Paraméterek[#Headers],0))*INDEX('PROJEKT PARAMÉTEREI'!$B$12:$H$12,1,MATCH(Adatok[[#Headers],[ÁLTALÁNOS PARTNER]],Paraméterek[#Headers],0))*Adatok[[#This Row],[TÉNYLEGES MUNKA]]","v":{"v":17850,"d":"17,850 Ft"}},{"$f":"INDEX(Paraméterek[],MATCH(Adatok[[#This Row],[PROJEKT TÍPUSA]],Paraméterek[PROJEKT TÍPUSA],0),MATCH(Adatok[[#Headers],[CÉGES JOGÁSZ]],Paraméterek[#Headers],0))*INDEX('PROJEKT PARAMÉTEREI'!$B$12:$H$12,1,MATCH(Adatok[[#Headers],[CÉGES JOGÁSZ]],Paraméterek[#Headers],0))*Adatok[[#This Row],[TÉNYLEGES MUNKA]]","v":{"v":6375,"d":"6,375 Ft"}},{"$f":"INDEX(Paraméterek[],MATCH(Adatok[[#This Row],[PROJEKT TÍPUSA]],Paraméterek[PROJEKT TÍPUSA],0),MATCH(Adatok[[#Headers],[VÉDŐÜGYVÉD]],Paraméterek[#Headers],0))*INDEX('PROJEKT PARAMÉTEREI'!$B$12:$H$12,1,MATCH(Adatok[[#Headers],[VÉDŐÜGYVÉD]],Paraméterek[#Headers],0))*Adatok[[#This Row],[TÉNYLEGES MUNKA]]","v":{"v":30600,"d":"30,600 Ft"}},{"$f":"INDEX(Paraméterek[],MATCH(Adatok[[#This Row],[PROJEKT TÍPUSA]],Paraméterek[PROJEKT TÍPUSA],0),MATCH(Adatok[[#Headers],[SZELL. TUL. VÉDELMÉT ELLÁTÓ JOGÁSZ]],Paraméterek[#Headers],0))*INDEX('PROJEKT PARAMÉTEREI'!$B$12:$H$12,1,MATCH(Adatok[[#Headers],[SZELL. TUL. VÉDELMÉT ELLÁTÓ JOGÁSZ]],Paraméterek[#Headers],0))*Adatok[[#This Row],[TÉNYLEGES MUNKA]]","v":{"v":0,"d":"0 Ft"}},{"$f":"INDEX(Paraméterek[],MATCH(Adatok[[#This Row],[PROJEKT TÍPUSA]],Paraméterek[PROJEKT TÍPUSA],0),MATCH(Adatok[[#Headers],[CSŐDELJÁRÁSI JOGÁSZ]],Paraméterek[#Headers],0))*INDEX('PROJEKT PARAMÉTEREI'!$B$12:$H$12,1,MATCH(Adatok[[#Headers],[CSŐDELJÁRÁSI JOGÁSZ]],Paraméterek[#Headers],0))*Adatok[[#This Row],[TÉNYLEGES MUNKA]]","v":{"v":0,"d":"0 Ft"}},{"$f":"INDEX(Paraméterek[],MATCH(Adatok[[#This Row],[PROJEKT TÍPUSA]],Paraméterek[PROJEKT TÍPUSA],0),MATCH(Adatok[[#Headers],[ADMINISZTRÁCIÓS SZEMÉLYZET]],Paraméterek[#Headers],0))*INDEX('PROJEKT PARAMÉTEREI'!$B$12:$H$12,1,MATCH(Adatok[[#Headers],[ADMINISZTRÁCIÓS SZEMÉLYZET]],Paraméterek[#Headers],0))*Adatok[[#This Row],[TÉNYLEGES MUNKA]]","v":{"v":9562.5,"d":"9,563 Ft"}}]
[null,"ÖSSZEG",{"$nulls":5},{"$f":"SUBTOTAL(109,Adatok[BECSÜLT MUNKA])","v":1500},{"$f":"SUBTOTAL(109,Adatok[TÉNYLEGES MUNKA])","v":1510},{"$f":"SUBTOTAL(109,Adatok[BECSÜLT IDŐTARTAM])","v":190},{"$f":"SUBTOTAL(109,Adatok[TÉNYLEGES IDŐTARTAM])","v":170}]

{"sheet":"PROJEKT ÖSSZESÍTÉSE","index":3,"n_rows":11,"n_cols":16,"rows_kept":11,"merged":[[3,2,3,7],[3,8,3,13],[3,15,14,19]]}
["Ezen a munkalapon szerepelnek a projekt összesítése. A jobbra lévő cellában automatikusan frissül a cég neve. Ebben az oszlopban hasznos utasítások szerepelnek. Első lépésként nyomja le a Le nyílbillentyűt.",{"$f":"'PROJEKT PARAMÉTEREI'!B1","v":"Cég neve"}]
["A jobbra lévő cellában szerepel a munkalap címe.",{"$f":"'PROJEKT PARAMÉTEREI'!B2","v":"Projekttervezés jogi cégeknek"}]
["A jobbra lévő cellában a bizalmasságra vonatkozó üzenet található.",{"$f":"'PROJEKT PARAMÉTEREI'!B3","v":"Cég neve – Bizalmas"}]
["A C4 cellában a Becsült felirat, az I4 cellában a Tényleges felirat, a P4 cellában pedig egy tájékoztató tipp szerepel.",null,"BECSÜLT",{"$nulls":5},"TÉNYLEGES",{"$nulls":6},"INFORMÁCIÓ: \nEz a kimutatás nem frissül automatikusan.  Ha frissíteni szeretné, jelölje ki (a kimutatásban bármelyik cellát), és a KIMUTATÁSESZKÖZÖK | ELEMZÉS menüszalaglapon válassza a Frissítés elemet.  Vagy jelölje ki a kimutatást, nyomja le a SHIFT+F10 billentyűparancsot, és válassza a Frissítés elemet."]
["A jobbra lévő cellában kezdődő kimutatás automatikusan frissül.","PROJEKT NEVE","ÁLTALÁNOS PARTNER ","CÉGES ","VÉDŐÜGYVÉD ","SZELLEMI TULAJDON ","CSŐD ","ADMINISZTRÁCIÓS SZEMÉLYZET ","ÁLTALÁNOS PARTNER  ","CÉGES","VÉDŐÜGYVÉD  ","CSŐD","SZELLEMI TULAJDON","ADMINISZTRÁCIÓS SZEMÉLYZET  "]
[null,"1. projekt",{"v":7000,"d":"7,000.00 Ft"},{"v":20000,"d":"20,000.00 Ft"},{"v":0,"d":"0.00 Ft"},{"v":0,"d":"0.00 Ft"},{"v":0,"d":"0.00 Ft"},{"v":12500,"d":"12,500.00 Ft"},{"v":7700,"d":"7,700.00 Ft"},{"v":22000,"d":"22,000.00 Ft"},{"v":0,"d":"0.00 Ft"},{"v":0,"d":"0.00 Ft"},{"v":0,"d":"0.00 Ft"},{"v":13750,"d":"13,750.00 Ft"}]
[null,"2. projekt",{"v":14000,"d":"14,000.00 Ft"},{"v":40000,"d":"40,000.00 Ft"},{"v":0,"d":"0.00 Ft"},{"v":11000,"d":"11,000.00 Ft"},{"v":0,"d":"0.00 Ft"},{"v":20000,"d":"20,000.00 Ft"},{"v":13650,"d":"13,650.00 Ft"},{"v":39000,"d":"39,000.00 Ft"},{"v":0,"d":"0.00 Ft"},{"v":10725,"d":"10,725.00 Ft"},{"v":0,"d":"0.00 Ft"},{"v":19500,"d":"19,500.00 Ft"}]
[null,"3. projekt",{"v":35000,"d":"35,000.00 Ft"},{"v":0,"d":"0.00 Ft"},{"v":75000,"d":"75,000.00 Ft"},{"v":0,"d":"0.00 Ft"},{"v":0,"d":"0.00 Ft"},{"v":18750,"d":"18,750.00 Ft"},{"v":35000,"d":"35,000.00 Ft"},{"v":0,"d":"0.00 Ft"},{"v":75000,"d":"75,000.00 Ft"},{"v":0,"d":"0.00 Ft"},{"v":0,"d":"0.00 Ft"},{"v":18750,"d":"18,750.00 Ft"}]
[null,"4. projekt",{"v":5250,"d":"5,250.00 Ft"},{"v":0,"d":"0.00 Ft"},{"v":0,"d":"0.00 Ft"},{"v":24750,"d":"24,750.00 Ft"},{"v":0,"d":"0.00 Ft"},{"v":5625,"d":"5,625.00 Ft"},{"v":5075,"d":"5,075.00 Ft"},{"v":0,"d":"0.00 Ft"},{"v":0,"d":"0.00 Ft"},{"v":23925,"d":"23,925.00 Ft"},{"v":0,"d":"0.00 Ft"},{"v":5437.5,"d":"5,437.50 Ft"}]
[null,"5. projekt",{"v":17500,"d":"17,500.00 Ft"},{"v":6250,"d":"6,250.00 Ft"},{"v":30000,"d":"30,000.00 Ft"},{"v":0,"d":"0.00 Ft"},{"v":0,"d":"0.00 Ft"},{"v":9375,"d":"9,375.00 Ft"},{"v":17850,"d":"17,850.00 Ft"},{"v":6375,"d":"6,375.00 Ft"},{"v":30600,"d":"30,600.00 Ft"},{"v":0,"d":"0.00 Ft"},{"v":0,"d":"0.00 Ft"},{"v":9562.5,"d":"9,562.50 Ft"}]
[null,"Végösszeg",{"v":78750,"d":"78,750.00 Ft"},{"v":66250,"d":"66,250.00 Ft"},{"v":105000,"d":"105,000.00 Ft"},{"v":35750,"d":"35,750.00 Ft"},{"v":0,"d":"0.00 Ft"},{"v":66250,"d":"66,250.00 Ft"},{"v":79275,"d":"79,275.00 Ft"},{"v":67375,"d":"67,375.00 Ft"},{"v":105600,"d":"105,600.00 Ft"},{"v":34650,"d":"34,650.00 Ft"},{"v":0,"d":"0.00 Ft"},{"v":67000,"d":"67,000.00 Ft"}]